bitfinex-derivatives/quotes_ETHF0:USTF0_20251225
["timestamp","ask_amount","ask_price","bid_price","bid_amount"]
[1766681345330,3.384,2955.9,2954.8,9.287]
[1766681345530,1.0713904,2955.8,2954.8,9.287]
[1766681345735,3.384,2955.9,2954.8,9.287]
[1766681345929,1.07139847,2955.8,2954.6,0.00507494]
[1766681346124,3.384,2955.9,2954.9,5.902]
[1766681346325,1.07151297,2955.8,2954.9,5.902]
[1766681346525,3.384,2955.9,2954.9,5.902]
[1766681346725,1.07150501,2955.8,2954.9,5.902]
[1766681346926,3.384,2955.9,2954.9,5.902]
[1766681347127,1.07150497,2955.8,2954.9,5.902]
[1766681347327,3.384,2955.9,2954.9,5.902]
[1766681347528,1.07150301,2955.8,2954.9,5.902]
[1766681347730,3.384,2955.9,2954.9,5.902]
[1766681347930,1.07151498,2955.8,2954.9,5.902]
[1766681348132,3.384,2955.9,2954.9,5.902]
[1766681348331,1.07151808,2955.8,2954.9,5.902]
[1766681348634,3.384,2955.9,2954.9,5.902]
[1766681348934,1.07152775,2955.8,2954.9,5.902]
[1766681349140,3.384,2955.9,2954.9,5.902]
[1766681349327,1.07153416,2955.8,2954.9,5.902]
[1766681349529,3.384,2955.9,2954.9,5.902]
[1766681349731,1.0715311,2955.8,2954.9,5.902]
[1766681349929,3.384,2955.9,2954.9,5.902]
[1766681350125,1.07171006,2955.8,2954.9,5.902]
[1766681350322,3.384,2955.9,2954.9,5.902]
[1766681350526,1.07156477,2955.8,2954.9,5.902]
[1766681350735,3.384,2955.9,2954.9,5.902]
[1766681350938,1.07156707,2955.8,2954.9,5.902]
[1766681351131,3.384,2955.9,2954.9,5.902]
[1766681351332,1.07156687,2955.8,2954.9,5.902]
[1766681351536,3.384,2955.9,2954.9,5.902]
[1766681351740,1.07159631,2955.8,2954.9,5.902]
[1766681352036,3.384,2955.9,2954.9,5.902]
[1766681352232,1.0715955,2955.8,2954.9,5.902]
[1766681352537,3.384,2955.9,2954.9,5.902]
[1766681352728,1.07162214,2955.8,2954.9,5.902]
[1766681352929,3.384,2955.9,2954.9,5.902]
[1766681353128,1.071626,2955.8,2954.6,0.00507494]
[1766681353329,3.384,2955.9,2954.6,0.00507494]
[1766681353633,1.60074063,2955.8,2953.8,3.385]
[1766681353829,2.80612081,2955.7,2953.8,3.466]
[1766681354031,43.60612081,2955.6,2953.8,3.466]
[1766681354235,4.98574063,2955.5,2953.8,3.466]
[1766681354430,1.6008758,2955.4,2953.8,3.466]
[1766681354632,1.6008758,2955.3,2954.4,0.00507494]
[1766681354938,1.6008758,2955.2,2954.4,0.00507494]
[1766681355139,4.45665593,2955.1,2954.4,0.00507494]
[1766681355340,3.385,2955.1,2954.4,0.00507494]
[1766681357641,9.395,2955.4,2954.4,0.00507494]
[1766681358439,3.385,2955.4,2954.4,0.00507494]
[1766681361634,3.385,2955.4,2954.5,3.385]
[1766681361835,3.385,2955.4,2954.4,0.00507494]
[1766681362035,3.385,2955.4,2954.4,3.39007494]
[1766681363539,3.385,2955.4,2954.4,0.00507494]
[1766681363843,3.385,2955.4,2954.4,3.39007494]
[1766681367440,3.385,2955.4,2954.4,0.00507494]
[1766681367936,3.385,2955.4,2954.4,3.39007494]
[1766681368443,3.385,2955.4,2954.4,0.00507494]
[1766681368652,3.385,2955.4,2954.4,3.39007494]
[1766681369238,3.385,2955.4,2954.4,0.00507494]
[1766681369446,1.07259098,2955.3,2954.4,3.39007494]
[1766681369746,3.385,2955.4,2954.4,0.00507494]
[1766681369936,1.07255659,2955.3,2954.4,0.00507494]
[1766681370137,3.385,2955.4,2954.4,0.00507494]
[1766681370338,1.07252016,2955.3,2954.4,0.00507494]
[1766681370542,3.385,2955.4,2954.4,0.00507494]
[1766681370843,1.072454,2955.3,2954.4,0.00507494]
[1766681371042,3.385,2955.4,2954.4,0.00507494]
[1766681371340,1.07245382,2955.3,2954.4,0.00507494]
[1766681371642,3.385,2955.4,2954.4,0.00507494]
[1766681371843,1.07245044,2955.3,2954.4,0.00507494]
[1766681372146,3.385,2955.4,2954.4,0.00507494]
[1766681372441,1.07238749,2955.3,2954.4,0.00507494]
[1766681372644,7.08235605,2955.2,2954.4,0.00507494]
[1766681372838,7.08235605,2955.2,2954.1,3.385]
[1766681372839,6.01,2955.2,2954.1,3.385]
[1766681373240,1.0723363,2955.1,2954.1,3.385]
[1766681373439,3.385,2955.0,2954.1,3.385]
[1766681373639,3.6052,2955.0,2954.1,3.385]
[1766681373840,3.6052,2955.0,2954.3,0.00507494]
[1766681374335,3.6052,2955.0,2954.1,3.385]
[1766681375244,3.6052,2955.0,2954.3,0.00507494]
[1766681375436,3.6052,2955.0,2953.6,0.1694]
[1766681375638,3.6052,2955.0,2953.7,3.385]
[1766681376043,3.6052,2955.0,2953.6,0.1694]
[1766681376244,3.6052,2955.0,2953.7,3.385]
[1766681376635,0.00507494,2954.6,2954.1,0.00507494]
[1766681376838,0.00909674,2954.6,2954.1,0.00507494]
[1766681378145,0.00909674,2954.6,2954.1,2.74946372]
[1766681378444,0.00909674,2954.6,2953.5,0.00315415]
[1766681378648,0.00909674,2954.6,2953.6,3.385]
[1766681378836,0.00909674,2954.6,2953.5,0.00315415]
[1766681379040,0.00909674,2954.6,2953.8,0.00507494]
[1766681379449,3.39409674,2954.6,2953.8,0.00507494]
[1766681382546,3.39409674,2954.6,2953.8,3.39007494]
[1766681382747,3.39409674,2954.6,2953.8,3.39107494]
[1766681382948,3.39409674,2954.6,2953.8,0.00507494]
[1766681383148,3.39409674,2954.6,2953.8,3.39107494]
[1766681383348,3.39409674,2954.6,2953.8,0.00507494]
[1766681383559,3.39409674,2954.6,2953.8,3.39107494]
[1766681383942,3.39409674,2954.6,2953.8,0.00507494]
[1766681384453,7.08199631,2954.5,2953.5,0.00282484]
[1766681384750,1.60242524,2954.4,2953.1,3.386]
[1766681384950,1.07310019,2954.3,2953.2,3.386]
[1766681385142,6.009,2954.5,2953.3,3.386]
[1766681385337,6.009,2954.5,2952.7,0.36808721]
[1766681385338,1.07311332,2954.4,2952.7,0.36808721]
[1766681385551,6.009,2954.5,2952.8,8.14944]
[1766681385751,6.009,2954.5,2953.1,0.16943]
[1766681385950,6.009,2954.5,2953.2,3.386]
[1766681386151,0.00909674,2954.6,2953.2,3.386]
[1766681386344,0.2202,2955.0,2953.2,3.386]
[1766681386551,0.2202,2955.0,2953.7,0.16939]
[1766681386851,0.2202,2955.0,2953.8,5.9]
[1766681387438,0.00507494,2954.7,2954.1,0.00507494]
[1766681387648,0.00507494,2954.7,2954.2,3.386]
[1766681387843,0.00507494,2954.7,2954.1,0.00507494]
[1766681389352,3.386,2954.6,2953.5,3.386]
[1766681391554,3.386,2954.6,2953.2,0.16942]
[1766681391749,3.386,2954.6,2953.3,3.386]
[1766681391949,3.386,2954.6,2953.4,3.386]
[1766681393348,3.386,2954.6,2953.5,3.386]
[1766681394650,7.07312765,2954.5,2952.7,0.19863721]
[1766681394952,1.59345789,2954.4,2952.7,0.19863721]
[1766681395153,42.39345789,2954.3,2952.7,0.19863721]
[1766681395353,4.45012765,2954.2,2952.7,0.19863721]
[1766681395547,3.386,2954.2,2952.7,0.19863721]
[1766681397160,3.386,2954.2,2952.9,3.386]
[1766681399647,0.00507494,2954.7,2952.9,3.386]
[1766681400252,0.00507494,2954.7,2952.7,0.19863721]
[1766681400447,0.00507494,2954.7,2953.1,0.16942]
[1766681401053,0.00507494,2954.7,2953.2,9.289]
[1766681401454,0.00507494,2954.7,2953.1,0.16942]
[1766681401658,0.00507494,2954.7,2953.3,5.903]
[1766681402864,0.00507494,2954.7,2953.2,0.16942]
[1766681403063,0.00507494,2954.7,2953.3,4.442]
[1766681403259,0.00507494,2954.7,2953.4,9.289]
[1766681403665,0.00507494,2954.7,2953.2,0.16942]
[1766681403864,0.00507494,2954.7,2953.3,4.442]
[1766681404658,3.39107494,2954.7,2953.2,0.16942]
[1766681404859,3.39107494,2954.7,2953.3,1.078]
[1766681405065,3.39107494,2954.7,2953.4,3.386]
[1766681405865,3.39107494,2954.7,2953.2,0.16942]
[1766681406158,3.39107494,2954.7,2953.3,3.386]
[1766681406558,0.3384,2954.6,2953.3,3.386]
[1766681407156,0.3384,2954.6,2953.0,1.21174859]
[1766681407356,0.3384,2954.6,2953.1,4.439]
[1766681407961,1.06446753,2954.5,2953.2,3.386]
[1766681408168,1.80426075,2954.6,2953.3,3.386]
[1766681408464,41.86449138,2954.5,2953.3,3.386]
[1766681408664,40.8,2954.5,2953.3,3.386]
[1766681409561,1.06444086,2954.4,2953.3,3.386]
[1766681409758,40.8,2954.5,2952.9,5.434]
[1766681409759,3.386,2954.3,2952.9,5.903]
[1766681409964,3.386,2954.3,2953.0,3.386]
[1766681410356,1.06422984,2954.2,2952.8,0.00245022]
[1766681410561,6.028,2954.1,2952.8,0.00245022]
[1766681411563,6.028,2954.1,2952.9,3.386]
[1766681412171,6.028,2954.1,2952.8,0.00245022]
[1766681412365,6.028,2954.1,2952.8,3.38845022]
[1766681412860,1.0638275,2954.0,2952.8,3.38845022]
[1766681413061,7.53047819,2954.1,2952.8,3.38845022]
[1766681413062,3.386,2953.9,2952.8,0.00245022]
[1766681413772,1.06342454,2953.8,2952.8,0.00245022]
[1766681413965,1.06342454,2953.7,2952.7,0.19863721]
[1766681414272,0.16939,2953.8,2951.7,1.40052511]
[1766681414476,0.00507494,2953.0,2951.8,3.386]
[1766681414670,3.39107494,2953.0,2951.8,3.386]
[1766681415066,3.39107494,2953.0,2951.8,3.38993683]
[1766681415264,0.00507494,2953.0,2951.8,3.55943683]
[1766681416072,0.00507494,2953.0,2951.8,0.17343683]
[1766681416373,0.00507494,2953.0,2951.9,3.387]
[1766681416575,0.00507494,2953.0,2951.9,3.663]
[1766681416870,0.00507494,2953.0,2952.0,3.387]
[1766681418471,0.00507494,2953.0,2952.1,3.387]
[1766681420181,0.3386,2952.9,2952.1,3.387]
[1766681420374,0.34292746,2952.9,2952.1,3.387]
[1766681421472,0.34292746,2952.9,2952.2,3.387]
[1766681421673,0.34292746,2952.9,2952.3,3.387]
[1766681422180,0.34292746,2952.9,2951.8,0.17343683]
[1766681422378,0.34292746,2952.9,2951.9,3.387]
[1766681427087,0.34292746,2952.9,2951.8,0.00393683]
[1766681427384,0.34292746,2952.9,2951.9,3.387]
[1766681428083,3.387,2952.8,2951.9,3.387]
[1766681428688,3.387,2952.8,2949.3,1.20572092]
[1766681428689,1.05445208,2952.7,2949.3,1.20572092]
[1766681428988,1.05445208,2952.7,2948.0,5.99013152]
[1766681428989,0.00508362,2951.3,2949.1,7.01317404]
[1766681429385,3.39,2951.2,2949.6,0.16963]
[1766681429587,3.39,2951.2,2949.7,3.387]
[1766681429890,3.39,2951.2,2949.7,3.39098745]
[1766681430090,3.39,2951.2,2949.7,0.00398745]
[1766681430091,3.387,2951.1,2949.7,0.00398745]
[1766681430295,0.00508362,2951.3,2949.2,0.16965]
[1766681430494,4.491,2951.0,2949.2,0.16965]
[1766681430795,3.391,2950.9,2949.3,3.388]
[1766681430996,3.388,2950.8,2949.3,3.388]
[1766681431192,3.39145223,2950.8,2949.4,1.37903893]
[1766681431701,3.39145223,2950.8,2949.3,3.39236824]
[1766681431897,3.39145223,2950.8,2949.4,1.37903893]
[1766681432200,3.39145223,2950.8,2948.6,0.16969]
[1766681432201,0.00345223,2950.8,2948.6,0.16969]
[1766681432405,1.48855436,2950.8,2949.3,0.16965]
[1766681432604,0.00345223,2950.8,2949.4,3.388]
[1766681432799,3.388,2951.2,2949.4,3.388]
[1766681433104,3.388,2951.2,2949.6,0.85793893]
[1766681433404,3.388,2951.2,2949.6,4.24593893]
[1766681433598,3.388,2951.2,2949.6,3.388]
[1766681433907,3.39226658,2951.2,2949.6,3.39182838]
[1766681435002,0.00426658,2951.2,2949.6,3.39182838]
[1766681435207,8.054,2951.1,2949.6,3.39182838]
[1766681435500,0.00426658,2951.2,2949.6,4.24976731]
[1766681435803,3.389,2951.1,2949.9,0.85793893]
[1766681436205,0.00426658,2951.2,2950.0,3.389]
[1766681436206,3.389,2951.0,2950.0,3.389]
[1766681436404,3.389,2951.0,2950.1,0.85793893]
[1766681436805,3.39326658,2951.2,2950.1,0.85793893]
[1766681437008,0.00426658,2951.2,2950.1,1.02753893]
[1766681437207,3.389,2951.5,2950.1,1.02753893]
[1766681437407,3.389,2951.5,2950.3,0.85793893]
[1766681437610,52.28767566,2952.2,2950.3,0.85793893]
[1766681437911,7.053,2952.1,2950.3,3.389]
[1766681438208,0.00508362,2951.5,2950.9,0.00508362]
[1766681438403,3.389,2951.4,2950.9,0.00508362]
[1766681440204,3.389,2951.4,2951.0,0.85793893]
[1766681440901,3.389,2951.4,2950.9,0.00508362]
[1766681441108,3.389,2951.4,2951.1,0.85793893]
[1766681442210,3.389,2951.4,2951.1,0.53573893]
[1766681442405,3.389,2951.4,2950.9,0.00508362]
[1766681443003,0.00508362,2951.5,2950.9,0.00508362]
[1766681443201,3.39408362,2951.5,2950.9,0.00508362]
[1766681444304,0.00508362,2951.5,2950.9,0.00508362]
[1766681446602,3.389,2951.6,2950.9,0.00508362]
[1766681447204,3.389,2952.0,2950.9,0.00508362]
[1766681447609,0.00508362,2951.7,2950.9,0.00508362]
[1766681450603,3.389,2951.6,2950.9,0.00508362]
[1766681450810,6.033,2951.5,2950.1,3.389]
[1766681451009,6.033,2951.5,2949.4,0.16964]
[1766681451311,1.05248335,2951.4,2949.7,3.389]
[1766681451515,1.05272772,2951.3,2949.7,3.389]
[1766681451808,5.90093756,2951.2,2949.5,3.389]
[1766681452005,1.05257658,2951.1,2949.5,3.389]
[1766681452213,0.3388,2951.1,2949.5,3.389]
[1766681452416,1.05766377,2951.0,2949.6,0.008912]
[1766681452708,6.033,2950.9,2949.6,0.008912]
[1766681452913,3.389,2950.8,2949.6,0.008912]
[1766681454512,3.389,2950.8,2949.8,0.00508362]
[1766681455108,3.389,2950.8,2949.6,0.00382838]
[1766681455313,3.389,2950.8,2949.6,0.008912]
[1766681455514,1.05887142,2950.7,2949.6,0.008912]
[1766681455718,3.389,2950.8,2949.6,0.008912]
[1766681456016,1.05886836,2950.7,2949.6,0.00382838]
[1766681456215,1.05886836,2950.6,2949.6,0.00382838]
[1766681456412,1.05886836,2950.5,2949.6,0.00382838]
[1766681456606,4.44786836,2950.4,2949.6,0.00382838]
[1766681456806,10.4821131,2950.3,2949.3,3.39]
[1766681457019,0.00508362,2950.1,2949.1,3.39]
[1766681457619,0.00508362,2950.1,2948.9,3.55967]
[1766681457819,0.00508362,2950.1,2948.9,3.56862607]
[1766681458217,1.06013665,2950.0,2948.9,3.56862607]
[1766681458410,0.00275781,2950.0,2948.9,3.56862607]
[1766681458614,0.00275781,2950.0,2948.9,0.00387245]
[1766681458910,4.97987032,2949.9,2948.9,0.00387245]
[1766681459111,1.05974561,2949.8,2948.9,0.00387245]
[1766681459313,3.39,2949.7,2948.9,0.00895607]
[1766681459618,3.39,2949.7,2949.0,0.00508362]
[1766681460016,1.05920172,2949.6,2949.1,0.00508362]
[1766681460216,3.39,2949.7,2949.1,0.00508362]
[1766681460518,1.05907613,2949.6,2949.0,0.00387245]
[1766681460705,3.39,2949.7,2949.0,0.00387245]
[1766681460909,1.05913169,2949.6,2949.0,0.00387245]
[1766681461111,3.39,2949.7,2949.0,0.00387245]
[1766681461514,3.39,2949.7,2949.0,0.00717983]
[1766681461911,0.00275781,2950.0,2949.0,0.00717983]
[1766681462220,3.39275781,2950.0,2949.2,0.00387245]
[1766681462716,0.00275781,2950.0,2949.2,0.00387245]
[1766681463622,1.20538018,2951.0,2949.2,0.17352245]
[1766681463822,11.01244613,2950.9,2949.2,0.17352245]
[1766681464018,1.05842129,2950.8,2949.2,0.17352245]
[1766681464214,1.05842129,2950.7,2949.2,0.17352245]
[1766681464414,0.3388,2951.1,2949.2,0.17352245]
[1766681464415,0.3388,2951.1,2949.3,0.16964]
[1766681464722,0.00508362,2950.5,2949.9,0.00508362]
[1766681465118,3.39,2950.8,2949.9,0.00508362]
[1766681466022,0.00508362,2950.6,2949.9,0.00508362]
[1766681468716,3.39,2950.9,2949.9,0.00508362]
[1766681469522,0.34193897,2951.1,2949.9,0.00508362]
[1766681469721,0.00508362,2950.8,2949.9,0.00508362]
[1766681472027,0.00508362,2950.8,2949.7,3.39]
[1766681472228,0.00508362,2950.8,2949.6,3.39]
[1766681473118,0.00508362,2950.8,2949.9,0.00508362]
[1766681473319,3.39,2950.7,2949.9,0.00508362]
[1766681474025,3.39,2950.7,2949.6,3.39]
[1766681474226,3.39,2950.7,2949.7,0.00387245]
[1766681474928,3.39,2950.7,2949.9,0.00508362]
[1766681475226,3.39,2950.7,2949.6,3.39]
[1766681475426,3.39,2950.7,2949.7,0.00387245]
[1766681476724,3.39,2950.7,2949.6,3.39]
[1766681477825,0.3389,2950.6,2949.6,3.39]
[1766681479128,0.3389,2950.6,2949.6,3.39387245]
[1766681479329,3.39,2950.5,2949.6,3.39387245]
[1766681480232,3.39,2950.5,2949.4,3.39]
[1766681480632,3.39,2950.5,2948.7,1.21632833]
[1766681480832,3.39,2950.5,2949.1,3.39387245]
[1766681481226,3.39,2950.5,2948.8,3.39]
[1766681481426,1.06153689,2950.4,2948.8,3.39]
[1766681481627,40.8,2950.3,2948.8,3.39]
[1766681481826,1.06152765,2950.2,2948.8,3.39]
[1766681482027,9.422,2950.1,2948.8,3.39]
[1766681482427,9.422,2950.1,2948.6,3.55968]
[1766681482629,9.422,2950.1,2948.6,3.56355245]
[1766681482926,9.422,2950.1,2948.6,3.56793102]
[1766681483327,1.05909867,2950.0,2948.6,3.39825102]
[1766681483538,1.0590066,2949.9,2948.6,0.00437857]
[1766681483727,0.16961,2950.0,2948.6,0.00437857]
[1766681484035,1.05903067,2949.9,2948.6,0.00437857]
[1766681484336,1.58868501,2949.8,2947.4,0.16975]
[1766681484535,0.00508362,2948.9,2947.4,0.16975]
[1766681484739,3.391,2948.8,2947.4,0.16975]
[1766681484929,3.391,2948.8,2947.7,0.00387245]
[1766681485239,0.0033681,2948.8,2947.8,0.00387245]
[1766681485428,7.272,2948.7,2947.8,0.00387245]
[1766681485824,7.272,2948.7,2946.7,1.39163547]
[1766681485825,7.272,2948.7,2947.0,1.838]
[1766681486134,7.272,2948.7,2946.7,0.16979]
[1766681486435,7.272,2948.7,2943.9,13.37526767]
[1766681486436,0.0033681,2948.8,2945.9,0.16984]
[1766681486738,0.00508362,2947.6,2945.4,0.16987]
[1766681486934,9.433,2947.5,2945.9,0.0027783]
[1766681487332,9.433,2947.5,2945.1,0.20101407]
[1766681487636,9.433,2947.5,2943.4,0.27707036]
[1766681487637,1.20578214,2947.0,2943.4,0.27707036]
[1766681487930,0.00509234,2945.5,2943.3,3.391]
[1766681488136,0.00509234,2945.5,2941.7,7.99508858]
[1766681488137,19.4010905,2945.4,2942.8,3.391]
[1766681488332,0.00509234,2944.4,2942.8,0.00249054]
[1766681488531,9.433,2944.3,2942.8,0.00249054]
[1766681488735,0.00509234,2944.4,2942.8,0.00249054]
[1766681488938,3.392,2945.0,2943.1,0.17]
[1766681489242,0.00431062,2945.4,2942.9,8.66052412]
[1766681489243,0.00431062,2945.4,2943.2,9.76622539]
[1766681489435,0.00431062,2945.4,2943.2,3.68522539]
[1766681489646,0.00431062,2945.4,2942.9,1.20928524]
[1766681489647,0.00431062,2945.4,2943.3,9.303]
[1766681489941,0.00431062,2945.4,2944.1,0.00509234]
[1766681490146,0.00431062,2945.4,2944.2,3.392]
[1766681490335,3.392,2946.0,2944.2,3.392]
[1766681490532,40.8,2946.3,2944.1,0.00509234]
[1766681490834,6.044,2946.0,2944.1,0.00509234]
[1766681491031,0.00509234,2945.3,2944.2,3.393]
[1766681491337,0.00509234,2945.3,2944.3,3.362]
[1766681491338,0.00811662,2945.3,2944.3,3.362]
[1766681491928,3.393,2946.1,2944.4,0.16992]
[1766681492132,33.935,2947.7,2944.5,0.16992]
[1766681492431,47.95809315,2947.1,2944.6,17.79]
[1766681492630,40.8,2947.1,2944.6,17.79]
[1766681492840,0.00509234,2946.1,2945.6,0.00509234]
[1766681493135,0.00509234,2946.1,2945.6,0.00835123]
[1766681493338,6.05209234,2946.1,2944.5,1.23044982]
[1766681493534,6.05209234,2946.1,2944.6,3.393]
[1766681494034,6.05209234,2946.1,2944.4,3.393]
[1766681494236,6.05209234,2946.1,2945.0,0.00509234]
[1766681494541,6.05209234,2946.1,2944.4,0.00343291]
[1766681495133,7.52365687,2946.1,2944.4,0.00343291]
[1766681495328,1.03699973,2946.0,2944.4,0.00343291]
[1766681495626,4.96191733,2945.9,2943.5,3.394]
[1766681495830,16.01590555,2945.8,2943.6,3.394]
[1766681496132,11.77407319,2946.5,2943.7,3.394]
[1766681496334,0.00509234,2945.4,2943.8,17.795]
[1766681496532,0.00509234,2945.4,2943.9,3.394]
[1766681497540,0.00509234,2945.4,2943.9,3.56396]
[1766681497832,0.00509234,2945.4,2943.9,3.394]
[1766681498029,0.00509234,2945.4,2944.4,0.16993]
[1766681498230,0.00509234,2945.4,2944.5,9.311]
[1766681498540,13.26961053,2946.5,2944.7,0.00509234]
[1766681498745,3.395,2946.4,2944.7,0.00509234]
[1766681499743,0.00509234,2945.8,2944.7,0.00509234]
[1766681499944,0.00509234,2945.8,2944.7,8.49209234]
[1766681500435,0.00509234,2945.8,2944.8,0.1699]
[1766681500639,3.395,2946.4,2945.0,0.16989]
[1766681501035,3.395,2946.4,2944.9,3.395]
[1766681501036,3.45905,2946.8,2944.9,3.395]
[1766681501239,3.45905,2946.8,2945.3,0.16987]
[1766681501439,0.3383,2946.7,2945.4,6.265]
[1766681501641,0.00509234,2946.3,2945.4,6.265]
[1766681501834,0.00509234,2946.3,2945.5,9.313]
[1766681502442,0.3383,2946.7,2945.5,9.48286]
[1766681503247,0.3383,2946.7,2945.5,0.16986]
[1766681503449,0.3383,2946.7,2945.6,9.48286]
[1766681504157,0.3383,2946.7,2945.6,0.16986]
[1766681504349,0.3383,2946.7,2945.7,9.313]
[1766681504750,0.3383,2946.7,2945.8,0.16985]
[1766681505049,5e-05,2946.8,2946.0,0.16983]
[1766681505252,5e-05,2946.8,2946.0,0.00360662]
[1766681505449,0.00509234,2946.7,2946.0,0.00360662]
[1766681505756,0.00509234,2946.7,2946.1,3.395]
[1766681506954,0.00295831,2947.1,2946.1,3.395]
[1766681507345,1.19601828,2948.1,2946.6,0.1698]
[1766681507552,1.04188136,2948.0,2946.7,9.313]
[1766681507854,0.0033155,2947.6,2947.1,0.00509234]
[1766681508057,0.0033155,2947.6,2947.2,3.395]
[1766681508352,3.395,2948.5,2947.2,3.395]
[1766681508555,1.04318223,2948.4,2947.2,3.395]
[1766681508850,1.04318223,2948.3,2947.2,3.395]
[1766681509051,1.04318223,2948.3,2947.1,0.00509234]
[1766681509052,1.04318223,2948.2,2947.1,0.00509234]
[1766681509258,1.50756167,2948.6,2947.1,0.00509234]
[1766681509259,4.43818223,2948.1,2947.1,3.40009234]
[1766681509455,1.04318223,2948.0,2947.1,0.00177684]
[1766681509758,1.04318223,2947.9,2946.6,3.394]
[1766681509955,1.04318223,2947.8,2946.6,3.394]
[1766681510150,1.57369642,2947.7,2946.4,5.917]
[1766681510353,1.57369642,2947.6,2946.7,3.394]
[1766681510558,0.00509234,2947.4,2946.9,0.00509234]
[1766681510759,1.04318223,2947.3,2946.9,0.00509234]
[1766681511363,1.04318223,2947.2,2946.9,0.00509234]
[1766681511562,0.00509234,2947.4,2946.9,0.00509234]
[1766681511755,1.04665804,2947.3,2946.9,0.00509234]
[1766681511951,0.00509234,2947.4,2946.0,0.00360662]
[1766681511952,4.44062047,2947.2,2946.0,0.00360662]
[1766681512156,1.5771655,2947.1,2946.0,0.00360662]
[1766681512355,1.5771655,2947.0,2946.0,0.00360662]
[1766681512556,1.5771655,2946.9,2946.0,0.00360662]
[1766681512757,1.04662047,2946.8,2946.0,0.00360662]
[1766681512959,1.04662047,2946.7,2946.1,0.00509234]
[1766681513152,1.04662047,2946.6,2946.1,0.00509234]
[1766681513351,1.04662047,2946.5,2946.1,0.00150776]
[1766681513552,1.20111062,2947.4,2946.2,3.394]
[1766681513757,0.53060301,2947.3,2946.2,3.394]
[1766681513957,0.00509234,2947.4,2946.3,0.16982]
[1766681515456,0.00509234,2947.4,2946.2,3.394]
[1766681515457,3.394,2947.9,2946.4,6.08681]
[1766681515658,0.53048632,2947.8,2946.5,3.394]
[1766681515863,0.53048632,2947.7,2946.5,3.394]
[1766681516061,0.53048632,2947.6,2946.5,3.394]
[1766681516257,3.394,2947.9,2946.5,3.394]
[1766681516462,0.00509234,2947.5,2946.5,3.394]
[1766681516663,0.00509234,2947.5,2946.4,0.16981]
[1766681516859,3.394,2947.4,2946.1,0.00150776]
[1766681517071,0.53052387,2947.3,2946.1,0.00150776]
[1766681517270,0.53052387,2947.2,2946.1,0.00150776]
[1766681517473,0.53052387,2947.1,2946.1,0.00150776]
[1766681517674,0.53052387,2947.0,2946.2,3.394]
[1766681517865,1.20139896,2947.4,2946.2,3.394]
[1766681518177,1.20139896,2947.4,2946.1,0.00150776]
[1766681518178,0.53059893,2947.3,2946.3,3.394]
[1766681518374,0.53059893,2947.2,2946.3,3.394]
[1766681518671,3.394,2947.4,2946.3,3.394]
[1766681518876,0.53056971,2947.3,2946.3,3.394]
[1766681519069,0.53056971,2947.2,2946.3,3.394]
[1766681519369,0.53056971,2947.1,2946.1,0.00150776]
[1766681519576,3.92456971,2947.0,2946.2,3.394]
[1766681519874,0.53056971,2946.9,2946.2,3.394]
[1766681520966,0.53056971,2946.9,2946.1,0.00150776]
[1766681521273,0.53062134,2946.8,2946.1,0.00150776]
[1766681521472,3.394,2947.0,2946.1,0.00150776]
[1766681521666,0.5306209,2946.9,2946.1,0.00150776]
[1766681521868,0.5306209,2946.8,2946.1,0.00150776]
[1766681522173,3.394,2947.0,2946.1,0.00150776]
[1766681522373,0.53062062,2946.9,2946.1,0.00150776]
[1766681522576,0.53062062,2946.8,2946.1,0.00150776]
[1766681522767,3.394,2947.0,2946.1,3.39550776]
[1766681522967,0.53062091,2946.9,2946.1,3.39550776]
[1766681523168,0.53062091,2946.8,2946.1,0.00150776]
[1766681523372,4.59539896,2947.0,2946.1,0.00150776]
[1766681523672,0.53064517,2946.9,2946.1,0.00150776]
[1766681523871,4.59539896,2947.0,2946.1,0.00150776]
[1766681523872,0.53064517,2946.8,2946.1,0.00150776]
[1766681524073,4.59539896,2947.0,2946.1,0.00150776]
[1766681524262,0.53064495,2946.9,2946.1,0.00150776]
[1766681524463,0.53064495,2946.8,2946.1,0.00150776]
[1766681524666,1.20139896,2947.0,2946.1,0.00150776]
[1766681524866,0.53064253,2946.9,2946.1,0.00150776]
[1766681525065,4.59539896,2947.1,2946.1,0.00150776]
[1766681525279,0.53064047,2947.0,2946.1,0.00150776]
[1766681525469,1.58010974,2946.9,2946.1,0.00150776]
[1766681525666,1.04946927,2946.8,2946.1,0.00150776]
[1766681525871,1.04946927,2946.7,2946.1,0.00150776]
[1766681526066,1.04946927,2946.6,2946.1,0.00150776]
[1766681526276,4.59539896,2947.1,2946.1,0.00150776]
[1766681526477,0.53061434,2947.0,2946.1,0.00150776]
[1766681526677,3.394,2947.1,2946.1,0.00150776]
[1766681526977,0.53061462,2947.0,2946.1,0.00150776]
[1766681527184,3.394,2947.1,2946.1,0.00150776]
[1766681527477,0.53059788,2947.0,2946.1,0.00150776]
[1766681527681,3.394,2947.1,2946.1,0.00150776]
[1766681528171,1.20139896,2947.3,2946.1,0.00150776]
[1766681528373,3.394,2947.4,2946.1,0.00150776]
[1766681528582,0.5305515,2947.3,2946.1,0.00150776]
[1766681528868,1.2064913,2947.5,2946.2,6.08682]
[1766681528869,0.00509234,2947.5,2946.2,6.08682]
[1766681529072,0.53054376,2947.4,2946.2,9.48082]
[1766681529279,0.53054376,2947.3,2946.2,9.48082]
[1766681529477,0.00509234,2947.5,2946.2,9.48082]
[1766681529674,0.530545,2947.4,2946.2,9.48082]
[1766681529872,0.530545,2947.3,2946.2,9.48082]
[1766681530070,0.530545,2947.3,2946.1,0.00150776]
[1766681530071,0.53055107,2947.2,2946.3,3.394]
[1766681530269,3.394,2947.3,2946.3,3.394]
[1766681530482,0.53059387,2947.2,2946.3,3.394]